[Event "Titled Tuesday Blitz June 13 Early 2023"]
[White "Mrithyunjay Mahadevan"]
[Black "Bashkansky, Ethan"]
[WhiteFideId "45003521"]
[BlackFideId "2071533"]
[WhiteElo "1626"]
[BlackElo "2307"]
[Result "0-1"]
[Round "4"]
[TimeControl "180+2"]
[Date "2023.06.13"]
[WhiteClock "0:00:19"]
[BlackClock "0:00:05"]
[Board "165"]

1. Nf3 {[%clk 0:02:59]}  f5 {[%clk 0:02:59]} 2. d4 {[%clk 0:02:57]}  Nf6 {[%clk 0:02:59]} 3. Bg5 {[%clk 0:02:57]}  e6 {[%clk 0:02:59]} 4. c4 {[%clk 0:02:54]}  Be7 {[%clk 0:02:50]} 5. Nc3 {[%clk 0:02:53]}  O-O {[%clk 0:02:51]} 6. h4 {[%clk 0:02:53]}  Qe8 {[%clk 0:02:45]} 7. Bxf6 {[%clk 0:02:51]}  Bxf6 {[%clk 0:02:44]} 8. e4 {[%clk 0:02:51]}  d6 {[%clk 0:02:24]} 9. Bd3 {[%clk 0:02:40]}  Nc6 {[%clk 0:02:23]} 10. Bc2 {[%clk 0:02:33]}  e5 {[%clk 0:02:12]} 11. d5 {[%clk 0:02:31]}  Nd4 {[%clk 0:02:02]} 12. Qd2 {[%clk 0:02:27]}  Nxf3+ {[%clk 0:01:57]} 13. gxf3 {[%clk 0:02:28]}  Qh5 {[%clk 0:01:48]} 14. Qe2 {[%clk 0:02:08]}  Bxh4 {[%clk 0:01:37]} 15. O-O-O {[%clk 0:02:07]}  Bg5+ {[%clk 0:01:27]} 16. Kb1 {[%clk 0:02:07]}  Qf7 {[%clk 0:01:19]} 17. Rdg1 {[%clk 0:02:07]}  h6 {[%clk 0:01:18]} 18. exf5 {[%clk 0:01:56]}  Bxf5 {[%clk 0:01:18]} 19. Ne4 {[%clk 0:01:56]}  Bxe4 {[%clk 0:00:58]} 20. Qxe4 {[%clk 0:01:57]}  Qf4 {[%clk 0:00:50]} 21. Qh7+ {[%clk 0:01:56]}  Kf7 {[%clk 0:00:50]} 22. Qg6+ {[%clk 0:01:52]}  Kg8 {[%clk 0:00:41]} 23. Qh7+ {[%clk 0:01:41]}  Kf7 {[%clk 0:00:41]} 24. Bg6+ {[%clk 0:01:41]}  Kf6 {[%clk 0:00:38]} 25. Be4 {[%clk 0:01:37]}  Kf7 {[%clk 0:00:33]} 26. Bg6+ {[%clk 0:01:28]}  Kf6 {[%clk 0:00:32]} 27. Bh5 {[%clk 0:01:28]}  Rg8 {[%clk 0:00:27]} 28. Qg6+ {[%clk 0:01:27]}  Ke7 {[%clk 0:00:27]} 29. Qe6+ {[%clk 0:01:25]}  Kf8 {[%clk 0:00:24]} 30. Qd7 {[%clk 0:01:14]}  g6 {[%clk 0:00:14]} 31. Bg4 {[%clk 0:01:13]}  Rg7 {[%clk 0:00:12]} 32. Qb5 {[%clk 0:01:12]}  Rb8 {[%clk 0:00:10]} 33. Qa4 {[%clk 0:01:05]}  a6 {[%clk 0:00:10]} 34. Qb3 {[%clk 0:01:02]}  Re7 {[%clk 0:00:06]} 35. Re1 {[%clk 0:01:00]}  Kg7 {[%clk 0:00:06]} 36. Re4 {[%clk 0:00:58]}  Qf6 {[%clk 0:00:05]} 37. Qd3 {[%clk 0:00:55]}  b6 {[%clk 0:00:05]} 38. Qa3 {[%clk 0:00:53]}  a5 {[%clk 0:00:06]} 39. b4 {[%clk 0:00:53]}  axb4 {[%clk 0:00:05]} 40. Qxb4 {[%clk 0:00:54]}  Rf8 {[%clk 0:00:06]} 41. a4 {[%clk 0:00:51]}  Qf7 {[%clk 0:00:06]} 42. Kc2 {[%clk 0:00:49]}  Qe8 {[%clk 0:00:06]} 43. Qb3 {[%clk 0:00:47]}  Rf4 {[%clk 0:00:05]} 44. Rhe1 {[%clk 0:00:46]}  Rxe4 {[%clk 0:00:05]} 45. fxe4 {[%clk 0:00:46]}  Rf7 {[%clk 0:00:06]} 46. f3 {[%clk 0:00:46]}  Qe7 {[%clk 0:00:05]} 47. Be6 {[%clk 0:00:45]}  Rf8 {[%clk 0:00:05]} 48. Kd1 {[%clk 0:00:44]}  Re8 {[%clk 0:00:06]} 49. Ke2 {[%clk 0:00:44]}  Qf8 {[%clk 0:00:06]} 50. Ra1 {[%clk 0:00:43]}  Qf4 {[%clk 0:00:06]} 51. Ra2 {[%clk 0:00:38]}  Rf8 {[%clk 0:00:05]} 52. a5 {[%clk 0:00:34]}  bxa5 {[%clk 0:00:04]} 53. Rxa5 {[%clk 0:00:27]}  Qd2+ {[%clk 0:00:05]} 54. Kf1 {[%clk 0:00:26]}  Qxa5 {[%clk 0:00:06]} 55. Qb7 {[%clk 0:00:19]}  Qb6 {[%clk 0:00:05]} 0-1


[Site "https://www.chess.com"]

[Event "Titled Tuesday Blitz June 13 Early 2023"]
[White "Hnydiuk, Aleksander"]
[Black "Wieczorek, Zbigniew"]
[WhiteFideId "1109057"]
[BlackFideId "1102001"]
[WhiteElo "2374"]
[BlackElo "2303"]
[Result "1-0"]
[Round "4"]
[TimeControl "180+2"]
[Date "2023.06.13"]
[WhiteClock "0:01:14"]
[BlackClock "0:00:04"]
[Board "166"]

1. e4 {[%clk 0:03:00]}  g6 {[%clk 0:02:59]} 2. d4 {[%clk 0:03:00]}  Bg7 {[%clk 0:03:00]} 3. Nc3 {[%clk 0:03:01]}  c6 {[%clk 0:03:00]} 4. Nf3 {[%clk 0:03:00]}  d6 {[%clk 0:02:59]} 5. Be3 {[%clk 0:02:59]}  Nf6 {[%clk 0:02:58]} 6. Qd2 {[%clk 0:02:57]}  b5 {[%clk 0:02:50]} 7. Bd3 {[%clk 0:02:57]}  Nbd7 {[%clk 0:02:46]} 8. O-O {[%clk 0:02:56]}  e5 {[%clk 0:02:44]} 9. a4 {[%clk 0:02:49]}  b4 {[%clk 0:02:44]} 10. Ne2 {[%clk 0:02:48]}  a5 {[%clk 0:02:41]} 11. c3 {[%clk 0:02:47]}  bxc3 {[%clk 0:02:39]} 12. bxc3 {[%clk 0:02:45]}  O-O {[%clk 0:02:39]} 13. Ng3 {[%clk 0:02:33]}  Ba6 {[%clk 0:02:37]} 14. Bxa6 {[%clk 0:02:26]}  Rxa6 {[%clk 0:02:36]} 15. Rfb1 {[%clk 0:02:27]}  Qc7 {[%clk 0:01:43]} 16. Qd3 {[%clk 0:02:26]}  Ra7 {[%clk 0:01:38]} 17. dxe5 {[%clk 0:02:25]}  dxe5 {[%clk 0:01:30]} 18. Bxa7 {[%clk 0:02:24]}  Qxa7 {[%clk 0:01:30]} 19. Nd2 {[%clk 0:02:19]}  Nc5 {[%clk 0:01:26]} 20. Qd6 {[%clk 0:02:14]}  Ng4 {[%clk 0:01:18]} 21. Rf1 {[%clk 0:01:51]}  Bf6 {[%clk 0:01:04]} 22. Qxc6 {[%clk 0:01:40]}  Rd8 {[%clk 0:00:58]} 23. Nc4 {[%clk 0:01:37]}  Nd3 {[%clk 0:00:53]} 24. Qb6 {[%clk 0:01:36]}  Qe7 {[%clk 0:00:51]} 25. Rad1 {[%clk 0:01:28]}  Bh4 {[%clk 0:00:45]} 26. Ne3 {[%clk 0:01:19]}  Bxg3 {[%clk 0:00:10]} 27. hxg3 {[%clk 0:01:18]}  Ngxf2 {[%clk 0:00:04]} 28. Rxf2 {[%clk 0:01:14]} 1-0


[Site "https://www.chess.com"]

[Event "Titled Tuesday Blitz June 13 Early 2023"]
[White "Vila Dupla, Aurelio"]
[Black "Mika, Tomasz"]
[WhiteFideId "2203383"]
[BlackFideId "1132970"]
[WhiteElo "2009"]
[BlackElo "2186"]
[Result "1-0"]
[Round "4"]
[TimeControl "180+2"]
[Date "2023.06.13"]
[WhiteClock "0:00:07"]
[BlackClock "0:00:05"]
[Board "168"]

1. Nf3 {[%clk 0:03:00]}  d5 {[%clk 0:02:59]} 2. d4 {[%clk 0:03:00]}  Bg4 {[%clk 0:02:58]} 3. Ne5 {[%clk 0:03:00]}  Bf5 {[%clk 0:02:57]} 4. c4 {[%clk 0:03:00]}  dxc4 {[%clk 0:02:53]} 5. Nc3 {[%clk 0:02:48]}  e6 {[%clk 0:02:53]} 6. e4 {[%clk 0:02:45]}  Bg6 {[%clk 0:02:49]} 7. h4 {[%clk 0:02:45]}  Bb4 {[%clk 0:02:27]} 8. Qa4+ {[%clk 0:02:41]}  Nc6 {[%clk 0:02:27]} 9. Nxc6 {[%clk 0:02:41]}  Bxc3+ {[%clk 0:02:27]} 10. bxc3 {[%clk 0:02:41]}  Qd7 {[%clk 0:02:28]} 11. Qxc4 {[%clk 0:02:29]}  Qxc6 {[%clk 0:02:17]} 12. Qxc6+ {[%clk 0:02:28]}  bxc6 {[%clk 0:02:18]} 13. f3 {[%clk 0:02:21]}  f6 {[%clk 0:02:16]} 14. Ba6 {[%clk 0:02:09]}  Rb8 {[%clk 0:02:13]} 15. Ba3 {[%clk 0:01:57]}  Kd7 {[%clk 0:02:07]} 16. Kd2 {[%clk 0:01:52]}  Ne7 {[%clk 0:02:04]} 17. Bc5 {[%clk 0:01:49]}  Rb2+ {[%clk 0:02:02]} 18. Kd3 {[%clk 0:01:44]}  Rxg2 {[%clk 0:01:56]} 19. Rhb1 {[%clk 0:01:41]}  f5 {[%clk 0:01:21]} 20. Bxe7 {[%clk 0:01:06]}  fxe4+ {[%clk 0:01:15]} 21. fxe4 {[%clk 0:01:07]}  Kxe7 {[%clk 0:01:14]} 22. Rb7 {[%clk 0:01:05]}  Kd7 {[%clk 0:01:08]} 23. Rxa7 {[%clk 0:00:59]}  Rf8 {[%clk 0:00:56]} 24. Re1 {[%clk 0:00:49]}  Rg3+ {[%clk 0:00:53]} 25. Re3 {[%clk 0:00:49]}  Rg2 {[%clk 0:00:44]} 26. Kc4 {[%clk 0:00:42]}  Rff2 {[%clk 0:00:37]} 27. a4 {[%clk 0:00:36]}  Ra2 {[%clk 0:00:32]} 28. Bb7 {[%clk 0:00:36]}  Rg4 {[%clk 0:00:24]} 29. Kc5 {[%clk 0:00:34]}  Rxh4 {[%clk 0:00:12]} 30. Bxc6+ {[%clk 0:00:30]}  Kd8 {[%clk 0:00:11]} 31. Rf3 {[%clk 0:00:25]}  Rh5+ {[%clk 0:00:08]} 32. e5 {[%clk 0:00:23]}  Bf5 {[%clk 0:00:07]} 33. Ra8+ {[%clk 0:00:22]}  Ke7 {[%clk 0:00:06]} 34. Rc8 {[%clk 0:00:21]}  g5 {[%clk 0:00:06]} 35. Rxc7+ {[%clk 0:00:21]}  Kd8 {[%clk 0:00:06]} 36. Rd7+ {[%clk 0:00:19]}  Kc8 {[%clk 0:00:05]} 37. Rg7 {[%clk 0:00:16]}  g4 {[%clk 0:00:05]} 38. Rf1 {[%clk 0:00:15]}  Rh3 {[%clk 0:00:04]} 39. c4 {[%clk 0:00:13]}  Rb3 {[%clk 0:00:03]} 40. Rg8+ {[%clk 0:00:12]}  Kc7 {[%clk 0:00:03]} 41. Rg7+ {[%clk 0:00:12]}  Kc8 {[%clk 0:00:04]} 42. Rg8+ {[%clk 0:00:07]}  Kc7 {[%clk 0:00:04]} 43. Rg7+ {[%clk 0:00:07]}  Kb8 {[%clk 0:00:04]} 44. Rg8+ {[%clk 0:00:07]}  Ka7 {[%clk 0:00:05]} 45. Ra8# {[%clk 0:00:07]} 1-0


[Site "https://www.chess.com"]

[Event "Titled Tuesday Blitz June 13 Early 2023"]
[White "Petukhov, Dmitry"]
[Black "agvania123"]
[WhiteFideId "4142748"]
[WhiteElo "2311"]
[BlackElo "2260"]
[Result "1-0"]
[Round "4"]
[TimeControl "180+2"]
[Date "2023.06.13"]
[WhiteClock "0:01:16"]
[BlackClock "0:00:15"]
[Board "169"]

1. e4 {[%clk 0:03:00]}  d5 {[%clk 0:02:59]} 2. exd5 {[%clk 0:03:00]}  Qxd5 {[%clk 0:03:00]} 3. c4 {[%clk 0:03:00]}  Qd8 {[%clk 0:03:01]} 4. d4 {[%clk 0:03:00]}  Nf6 {[%clk 0:03:00]} 5. Nc3 {[%clk 0:03:00]}  g6 {[%clk 0:02:55]} 6. Nf3 {[%clk 0:02:59]}  Bg7 {[%clk 0:02:56]} 7. Be2 {[%clk 0:02:55]}  O-O {[%clk 0:02:57]} 8. O-O {[%clk 0:02:56]}  c6 {[%clk 0:02:57]} 9. Bg5 {[%clk 0:02:55]}  Bg4 {[%clk 0:02:55]} 10. h3 {[%clk 0:02:49]}  Bxf3 {[%clk 0:02:54]} 11. Bxf3 {[%clk 0:02:50]}  h6 {[%clk 0:02:52]} 12. Bh4 {[%clk 0:02:50]}  Nbd7 {[%clk 0:02:51]} 13. Re1 {[%clk 0:02:50]}  e6 {[%clk 0:02:30]} 14. d5 {[%clk 0:02:50]}  cxd5 {[%clk 0:02:31]} 15. cxd5 {[%clk 0:02:49]}  exd5 {[%clk 0:02:30]} 16. Nxd5 {[%clk 0:02:47]}  g5 {[%clk 0:02:30]} 17. Bg3 {[%clk 0:02:45]}  Nxd5 {[%clk 0:02:23]} 18. Qxd5 {[%clk 0:02:46]}  Nf6 {[%clk 0:01:45]} 19. Qxb7 {[%clk 0:02:39]}  Rc8 {[%clk 0:01:44]} 20. Qxa7 {[%clk 0:02:36]}  Qd2 {[%clk 0:01:40]} 21. Be5 {[%clk 0:02:25]}  Ne8 {[%clk 0:01:33]} 22. Rad1 {[%clk 0:02:13]}  Qc2 {[%clk 0:01:25]} 23. Be4 {[%clk 0:02:01]}  Qc4 {[%clk 0:01:10]} 24. b3 {[%clk 0:01:58]}  Qb4 {[%clk 0:01:07]} 25. Bxg7 {[%clk 0:01:53]}  Nxg7 {[%clk 0:01:08]} 26. Bd5 {[%clk 0:01:40]}  Kh8 {[%clk 0:00:43]} 27. Bc4 {[%clk 0:01:39]}  Rfe8 {[%clk 0:00:41]} 28. Rxe8+ {[%clk 0:01:34]}  Rxe8 {[%clk 0:00:41]} 29. Qxf7 {[%clk 0:01:28]}  Re1+ {[%clk 0:00:18]} 30. Kh2 {[%clk 0:01:27]}  Qb8+ {[%clk 0:00:17]} 31. g3 {[%clk 0:01:22]}  Rxd1 {[%clk 0:00:16]} 32. Qg6 {[%clk 0:01:17]}  Rd2 {[%clk 0:00:15]} 33. Qxh6# {[%clk 0:01:16]} 1-0


[Site "https://www.chess.com"]

[Event "Titled Tuesday Blitz June 13 Early 2023"]
[White "EdmundPlayer"]
[Black "Ladan, Nicholas"]
[BlackFideId "30918855"]
[WhiteElo "2244"]
[BlackElo "2167"]
[Result "0-1"]
[Round "4"]
[TimeControl "180+2"]
[Date "2023.06.13"]
[WhiteClock "0:00:17"]
[BlackClock "0:00:08"]
[Board "170"]

1. e4 {[%clk 0:02:51]}  e5 {[%clk 0:02:53]} 2. Nf3 {[%clk 0:02:44]}  Nc6 {[%clk 0:02:54]} 3. Bb5 {[%clk 0:02:35]}  a6 {[%clk 0:02:53]} 4. Bxc6 {[%clk 0:02:30]}  dxc6 {[%clk 0:02:52]} 5. O-O {[%clk 0:02:28]}  Qf6 {[%clk 0:02:52]} 6. d4 {[%clk 0:02:26]}  exd4 {[%clk 0:02:53]} 7. Qxd4 {[%clk 0:02:24]}  Qxd4 {[%clk 0:02:53]} 8. Nxd4 {[%clk 0:02:24]}  Bd7 {[%clk 0:02:54]} 9. Nc3 {[%clk 0:02:18]}  O-O-O {[%clk 0:02:53]} 10. Be3 {[%clk 0:02:17]}  c5 {[%clk 0:02:42]} 11. Nf5 {[%clk 0:02:11]}  g6 {[%clk 0:02:34]} 12. Ng3 {[%clk 0:02:09]}  b6 {[%clk 0:02:31]} 13. a4 {[%clk 0:02:07]}  a5 {[%clk 0:02:30]} 14. Rfd1 {[%clk 0:01:56]}  Bg7 {[%clk 0:02:22]} 15. Nge2 {[%clk 0:01:53]}  Ne7 {[%clk 0:02:13]} 16. Rd2 {[%clk 0:01:52]}  Nc6 {[%clk 0:02:03]} 17. Rad1 {[%clk 0:01:50]}  Be6 {[%clk 0:01:31]} 18. Nd5 {[%clk 0:01:41]}  Kb7 {[%clk 0:00:50]} 19. c3 {[%clk 0:01:37]}  Ne5 {[%clk 0:00:47]} 20. Nef4 {[%clk 0:01:30]}  Nc4 {[%clk 0:00:45]} 21. Re2 {[%clk 0:01:30]}  c6 {[%clk 0:00:39]} 22. Nxe6 {[%clk 0:01:09]}  fxe6 {[%clk 0:00:38]} 23. Bg5 {[%clk 0:01:08]}  exd5 {[%clk 0:00:24]} 24. Bxd8 {[%clk 0:01:08]}  Rxd8 {[%clk 0:00:25]} 25. exd5 {[%clk 0:01:08]}  Be5 {[%clk 0:00:17]} 26. dxc6+ {[%clk 0:01:06]}  Kc7 {[%clk 0:00:17]} 27. Rxd8 {[%clk 0:01:04]}  Kxd8 {[%clk 0:00:18]} 28. b3 {[%clk 0:01:03]}  Bxc3 {[%clk 0:00:10]} 29. bxc4 {[%clk 0:01:03]}  Kc7 {[%clk 0:00:11]} 30. Re7+ {[%clk 0:01:00]}  Kxc6 {[%clk 0:00:11]} 31. Rxh7 {[%clk 0:01:00]}  Kd6 {[%clk 0:00:10]} 32. Rh6 {[%clk 0:01:00]}  Ke5 {[%clk 0:00:10]} 33. Rxg6 {[%clk 0:01:00]}  Kd4 {[%clk 0:00:10]} 34. Rg4+ {[%clk 0:01:00]}  Kd3 {[%clk 0:00:11]} 35. Rg3+ {[%clk 0:00:59]}  Kxc4 {[%clk 0:00:10]} 36. h4 {[%clk 0:00:49]}  Ba1 {[%clk 0:00:10]} 37. h5 {[%clk 0:00:46]}  Kb4 {[%clk 0:00:10]} 38. Rg6 {[%clk 0:00:41]}  Kxa4 {[%clk 0:00:09]} 39. Rxb6 {[%clk 0:00:41]}  c4 {[%clk 0:00:09]} 40. h6 {[%clk 0:00:40]}  c3 {[%clk 0:00:09]} 41. Rc6 {[%clk 0:00:40]}  Kb3 {[%clk 0:00:09]} 42. g4 {[%clk 0:00:36]}  c2 {[%clk 0:00:09]} 43. g5 {[%clk 0:00:35]}  Bc3 {[%clk 0:00:09]} 44. Rxc3+ {[%clk 0:00:15]}  Kxc3 {[%clk 0:00:10]} 45. h7 {[%clk 0:00:15]}  c1=Q+ {[%clk 0:00:10]} 46. Kh2 {[%clk 0:00:16]}  Qf4+ {[%clk 0:00:09]} 47. Kh3 {[%clk 0:00:16]}  Qf5+ {[%clk 0:00:08]} 48. Kh4 {[%clk 0:00:16]}  Qxh7+ {[%clk 0:00:09]} 49. Kg4 {[%clk 0:00:17]}  Qe4+ {[%clk 0:00:08]} 50. f4 {[%clk 0:00:17]}  Kd4 {[%clk 0:00:08]} 51. Kh5 {[%clk 0:00:15]}  Qh7+ {[%clk 0:00:06]} 52. Kg4 {[%clk 0:00:15]}  Ke4 {[%clk 0:00:07]} 53. f5 {[%clk 0:00:14]}  Qxf5+ {[%clk 0:00:07]} 54. Kh5 {[%clk 0:00:15]}  Qh7+ {[%clk 0:00:07]} 55. Kg4 {[%clk 0:00:15]}  Qg6 {[%clk 0:00:07]} 56. Kh4 {[%clk 0:00:15]}  Kf4 {[%clk 0:00:07]} 57. Kh3 {[%clk 0:00:16]}  Qxg5 {[%clk 0:00:07]} 58. Kh2 {[%clk 0:00:17]}  Kf3 {[%clk 0:00:08]} 59. Kh1 {[%clk 0:00:17]}  Qg2# {[%clk 0:00:08]} 0-1


[Site "https://www.chess.com"]

[Event "Titled Tuesday Blitz June 13 Early 2023"]
[White "rionelG"]
[Black "Ronka, Erik"]
[BlackFideId "505080"]
[WhiteElo "2234"]
[BlackElo "2264"]
[Result "0-1"]
[Round "4"]
[TimeControl "180+2"]
[Date "2023.06.13"]
[WhiteClock "0:00:00"]
[BlackClock "0:00:27"]
[Board "171"]

1. e4 {[%clk 0:02:06]}  a6 {[%clk 0:02:57]} 2. d3 {[%clk 0:02:05]}  c5 {[%clk 0:02:58]} 3. g3 {[%clk 0:02:05]}  g6 {[%clk 0:02:56]} 4. Bg2 {[%clk 0:02:06]}  Bg7 {[%clk 0:02:57]} 5. Nf3 {[%clk 0:02:06]}  e6 {[%clk 0:02:57]} 6. O-O {[%clk 0:02:06]}  Ne7 {[%clk 0:02:58]} 7. Re1 {[%clk 0:02:07]}  Nbc6 {[%clk 0:02:58]} 8. a4 {[%clk 0:01:58]}  O-O {[%clk 0:02:58]} 9. e5 {[%clk 0:01:57]}  Rb8 {[%clk 0:02:54]} 10. Nbd2 {[%clk 0:01:54]}  b5 {[%clk 0:02:48]} 11. axb5 {[%clk 0:01:52]}  axb5 {[%clk 0:02:49]} 12. Ne4 {[%clk 0:01:52]}  Qb6 {[%clk 0:02:47]} 13. Be3 {[%clk 0:01:46]}  Nd4 {[%clk 0:02:36]} 14. c3 {[%clk 0:01:45]}  Nxf3+ {[%clk 0:02:32]} 15. Qxf3 {[%clk 0:01:44]}  Qc7 {[%clk 0:02:04]} 16. Bxc5 {[%clk 0:01:39]}  Nf5 {[%clk 0:01:59]} 17. d4 {[%clk 0:01:31]}  Rd8 {[%clk 0:01:57]} 18. Ra7 {[%clk 0:01:23]}  Bb7 {[%clk 0:01:56]} 19. Rxb7 {[%clk 0:00:54]}  Rxb7 {[%clk 0:01:52]} 20. Nf6+ {[%clk 0:00:55]}  Bxf6 {[%clk 0:01:52]} 21. Qxb7 {[%clk 0:00:55]}  Qxb7 {[%clk 0:01:52]} 22. Bxb7 {[%clk 0:00:56]}  Be7 {[%clk 0:01:50]} 23. b4 {[%clk 0:00:48]}  Rb8 {[%clk 0:01:43]} 24. Be4 {[%clk 0:00:47]}  d6 {[%clk 0:01:31]} 25. exd6 {[%clk 0:00:40]}  Nxd6 {[%clk 0:01:32]} 26. Bc6 {[%clk 0:00:37]}  Kf8 {[%clk 0:01:31]} 27. Ra1 {[%clk 0:00:36]}  Kg7 {[%clk 0:01:12]} 28. Ra7 {[%clk 0:00:33]}  Kf6 {[%clk 0:01:12]} 29. Rd7 {[%clk 0:00:19]}  Nf5 {[%clk 0:00:57]} 30. Kf1 {[%clk 0:00:16]}  Rc8 {[%clk 0:00:55]} 31. Bxb5 {[%clk 0:00:16]}  Ra8 {[%clk 0:00:51]} 32. Bd3 {[%clk 0:00:15]}  Bxc5 {[%clk 0:00:30]} 33. dxc5 {[%clk 0:00:14]}  Ne7 {[%clk 0:00:31]} 34. c6 {[%clk 0:00:10]}  Nxc6 {[%clk 0:00:30]} 35. Be4 {[%clk 0:00:10]}  Ra1+ {[%clk 0:00:30]} 36. Kg2 {[%clk 0:00:10]}  Ne5 {[%clk 0:00:30]} 37. b5 {[%clk 0:00:00]}  Nxd7 {[%clk 0:00:27]} 0-1


[Site "https://www.chess.com"]

[Event "Titled Tuesday Blitz June 13 Early 2023"]
[White "Escudero Donoso, Felipe"]
[Black "Hristodoulou, Panagiotis"]
[WhiteFideId "3410595"]
[BlackFideId "4214340"]
[WhiteElo "2184"]
[BlackElo "2272"]
[Result "0-1"]
[Round "4"]
[TimeControl "180+2"]
[Date "2023.06.13"]
[WhiteClock "0:00:00"]
[BlackClock "0:00:37"]
[Board "173"]

1. d4 {[%clk 0:03:00]}  Nf6 {[%clk 0:02:47]} 2. c4 {[%clk 0:03:00]}  e6 {[%clk 0:02:47]} 3. Nf3 {[%clk 0:03:00]}  Bb4+ {[%clk 0:02:40]} 4. Bd2 {[%clk 0:02:57]}  a5 {[%clk 0:02:40]} 5. g3 {[%clk 0:02:56]}  d6 {[%clk 0:02:40]} 6. Bg2 {[%clk 0:02:56]}  Nbd7 {[%clk 0:02:41]} 7. O-O {[%clk 0:02:57]}  e5 {[%clk 0:02:39]} 8. e3 {[%clk 0:02:44]}  Bxd2 {[%clk 0:02:38]} 9. Nbxd2 {[%clk 0:02:41]}  O-O {[%clk 0:02:39]} 10. Qc2 {[%clk 0:02:40]}  Qe7 {[%clk 0:02:38]} 11. a3 {[%clk 0:02:40]}  a4 {[%clk 0:02:37]} 12. Nb1 {[%clk 0:02:33]}  c5 {[%clk 0:02:31]} 13. dxe5 {[%clk 0:02:11]}  dxe5 {[%clk 0:02:29]} 14. Nc3 {[%clk 0:02:11]}  Nb6 {[%clk 0:02:28]} 15. Rfd1 {[%clk 0:02:03]}  Bg4 {[%clk 0:02:26]} 16. h3 {[%clk 0:01:57]}  Bh5 {[%clk 0:02:25]} 17. g4 {[%clk 0:01:51]}  Bg6 {[%clk 0:02:25]} 18. Qe2 {[%clk 0:01:52]}  Rfd8 {[%clk 0:02:18]} 19. Nh4 {[%clk 0:01:44]}  Qe6 {[%clk 0:01:36]} 20. Nxg6 {[%clk 0:01:25]}  hxg6 {[%clk 0:01:37]} 21. g5 {[%clk 0:01:03]}  Nh7 {[%clk 0:01:33]} 22. Nd5 {[%clk 0:00:59]}  Nxd5 {[%clk 0:01:30]} 23. cxd5 {[%clk 0:00:53]}  Qd6 {[%clk 0:01:30]} 24. h4 {[%clk 0:00:50]}  Rdb8 {[%clk 0:01:29]} 25. Qb5 {[%clk 0:00:48]}  Ra6 {[%clk 0:01:25]} 26. Rac1 {[%clk 0:00:47]}  Rc8 {[%clk 0:01:03]} 27. Qxb7 {[%clk 0:00:44]}  Rc7 {[%clk 0:01:03]} 28. Qb8+ {[%clk 0:00:35]}  Nf8 {[%clk 0:01:03]} 29. Qb5 {[%clk 0:00:25]}  Nd7 {[%clk 0:01:00]} 30. Bh3 {[%clk 0:00:20]}  f5 {[%clk 0:00:47]} 31. Rc2 {[%clk 0:00:15]}  e4 {[%clk 0:00:46]} 32. Rdc1 {[%clk 0:00:11]}  Kh7 {[%clk 0:00:45]} 33. Bf1 {[%clk 0:00:10]}  Rb6 {[%clk 0:00:44]} 34. Qe2 {[%clk 0:00:09]}  Ne5 {[%clk 0:00:43]} 35. Bg2 {[%clk 0:00:09]}  c4 {[%clk 0:00:43]} 36. Qd2 {[%clk 0:00:06]}  Rb3 {[%clk 0:00:39]} 37. Qd4 {[%clk 0:00:00]}  Rd3 {[%clk 0:00:37]} 0-1


[Site "https://www.chess.com"]

[Event "Titled Tuesday Blitz June 13 Early 2023"]
[White "Khamdamova, Afruza"]
[Black "Xavier_mompel"]
[WhiteFideId "14210444"]
[WhiteElo "2312"]
[BlackElo "2204"]
[Result "1-0"]
[Round "4"]
[TimeControl "180+2"]
[Date "2023.06.13"]
[WhiteClock "0:01:29"]
[BlackClock "0:00:06"]
[Board "174"]

1. e4 {[%clk 0:03:00]}  c5 {[%clk 0:02:59]} 2. Nf3 {[%clk 0:03:00]}  e6 {[%clk 0:02:59]} 3. d4 {[%clk 0:03:01]}  cxd4 {[%clk 0:03:00]} 4. Nxd4 {[%clk 0:03:01]}  Nc6 {[%clk 0:03:00]} 5. Nc3 {[%clk 0:03:00]}  Qc7 {[%clk 0:03:00]} 6. Be2 {[%clk 0:02:59]}  a6 {[%clk 0:02:59]} 7. O-O {[%clk 0:02:59]}  Nf6 {[%clk 0:02:59]} 8. Be3 {[%clk 0:02:59]}  Be7 {[%clk 0:02:58]} 9. f4 {[%clk 0:02:59]}  d6 {[%clk 0:02:59]} 10. Kh1 {[%clk 0:02:59]}  O-O {[%clk 0:02:55]} 11. Qe1 {[%clk 0:02:58]}  Nxd4 {[%clk 0:02:53]} 12. Bxd4 {[%clk 0:02:59]}  e5 {[%clk 0:02:53]} 13. Be3 {[%clk 0:02:58]}  exf4 {[%clk 0:02:48]} 14. Bxf4 {[%clk 0:02:58]}  Be6 {[%clk 0:02:48]} 15. Rd1 {[%clk 0:02:55]}  Rad8 {[%clk 0:02:46]} 16. Qg3 {[%clk 0:02:54]}  Kh8 {[%clk 0:02:18]} 17. Rd2 {[%clk 0:02:52]}  Rd7 {[%clk 0:02:15]} 18. Bd3 {[%clk 0:02:42]}  Nh5 {[%clk 0:02:07]} 19. Qf3 {[%clk 0:02:36]}  Nxf4 {[%clk 0:02:07]} 20. Qxf4 {[%clk 0:02:37]}  Bf6 {[%clk 0:02:02]} 21. Nd5 {[%clk 0:02:16]}  Bxd5 {[%clk 0:02:02]} 22. exd5 {[%clk 0:02:16]}  Be5 {[%clk 0:02:02]} 23. Qh4 {[%clk 0:02:14]}  h6 {[%clk 0:01:52]} 24. c3 {[%clk 0:02:04]}  Re7 {[%clk 0:01:34]} 25. Rdf2 {[%clk 0:02:02]}  f6 {[%clk 0:00:39]} 26. Qe4 {[%clk 0:01:51]}  g5 {[%clk 0:00:23]} 27. Qg6 {[%clk 0:01:49]}  Rg7 {[%clk 0:00:22]} 28. Qxh6+ {[%clk 0:01:49]}  Kg8 {[%clk 0:00:23]} 29. Bg6 {[%clk 0:01:43]}  Qe7 {[%clk 0:00:20]} 30. Rf3 {[%clk 0:01:42]}  Bf4 {[%clk 0:00:17]} 31. Rh3 {[%clk 0:01:39]}  Rxg6 {[%clk 0:00:15]} 32. Qh8+ {[%clk 0:01:28]}  Kf7 {[%clk 0:00:11]} 33. Rh7+ {[%clk 0:01:28]}  Ke8 {[%clk 0:00:11]} 34. Rxe7+ {[%clk 0:01:28]}  Kxe7 {[%clk 0:00:06]} 35. Qh7+ {[%clk 0:01:29]} 1-0


[Site "https://www.chess.com"]

[Event "Titled Tuesday Blitz June 13 Early 2023"]
[White "Vyatkin, Dmitry"]
[Black "le-castor-faineant"]
[WhiteFideId "4171900"]
[WhiteElo "2279"]
[BlackElo "2198"]
[Result "1-0"]
[Round "4"]
[TimeControl "180+2"]
[Date "2023.06.13"]
[WhiteClock "0:02:23"]
[BlackClock "0:01:29"]
[Board "175"]

1. d4 {[%clk 0:02:58]}  Nf6 {[%clk 0:02:59]} 2. c4 {[%clk 0:02:58]}  g6 {[%clk 0:02:59]} 3. g3 {[%clk 0:02:58]}  Bg7 {[%clk 0:03:00]} 4. Bg2 {[%clk 0:02:58]}  O-O {[%clk 0:03:01]} 5. Nc3 {[%clk 0:02:59]}  d6 {[%clk 0:03:02]} 6. Nf3 {[%clk 0:02:58]}  Nbd7 {[%clk 0:03:01]} 7. O-O {[%clk 0:02:58]}  e5 {[%clk 0:03:01]} 8. e4 {[%clk 0:02:58]}  exd4 {[%clk 0:02:55]} 9. Nxd4 {[%clk 0:02:57]}  a5 {[%clk 0:02:56]} 10. h3 {[%clk 0:02:56]}  Nc5 {[%clk 0:02:55]} 11. Re1 {[%clk 0:02:56]}  Re8 {[%clk 0:02:55]} 12. Qc2 {[%clk 0:02:50]}  Nfxe4 {[%clk 0:02:54]} 13. Nxe4 {[%clk 0:02:45]}  Bxd4 {[%clk 0:02:51]} 14. Bg5 {[%clk 0:02:43]}  f6 {[%clk 0:02:41]} 15. Bxf6 {[%clk 0:02:31]}  Bxf6 {[%clk 0:02:12]} 16. Nxf6+ {[%clk 0:02:31]}  Qxf6 {[%clk 0:02:13]} 17. Rxe8+ {[%clk 0:02:31]}  Kf7 {[%clk 0:02:13]} 18. Rae1 {[%clk 0:02:30]}  Bf5 {[%clk 0:02:09]} 19. Bd5+ {[%clk 0:02:25]}  Kg7 {[%clk 0:01:36]} 20. R1e7+ {[%clk 0:02:23]}  Kh6 {[%clk 0:01:34]} 21. Qd2+ {[%clk 0:02:24]}  g5 {[%clk 0:01:34]} 22. Rf7 {[%clk 0:02:24]}  Qxf7 {[%clk 0:01:31]} 23. Bxf7 {[%clk 0:02:23]}  Rxe8 {[%clk 0:01:29]} 24. Bxe8 {[%clk 0:02:23]} 1-0


[Site "https://www.chess.com"]